bitfinex/quotes_BTCUSD_20240602
["timestamp","ask_amount","ask_price","bid_price","bid_amount"]
[1717339765417,0.679081,68175.0,68170.0,0.04394551]
[1717339765418,0.01,68173.0,68170.0,0.04394551]
[1717339765619,0.01,68173.0,68171.0,0.15224083]
[1717339765820,0.685089,68171.0,68170.0,0.04394551]
[1717339766021,0.5384,68168.0,68166.0,0.04394551]
[1717339766230,0.5484,68168.0,68167.0,0.15224805]
[1717339766429,0.5484,68168.0,68163.0,0.009438]
[1717339766640,0.146705,68164.0,68163.0,0.009438]
[1717339766855,0.84088291,68164.0,68163.0,0.009438]
[1717339768447,0.87688291,68164.0,68163.0,0.009438]
[1717339769740,0.91188291,68164.0,68163.0,0.009438]
[1717339770059,0.87688291,68164.0,68163.0,0.009438]
[1717339770440,0.91288291,68164.0,68163.0,0.009438]
[1717339775216,0.767105,68164.0,68163.0,0.009438]
[1717339775602,0.757105,68164.0,68163.0,0.009438]
[1717339775934,0.218705,68164.0,68163.0,0.009438]
[1717339776074,0.218705,68164.0,68163.0,0.01144351]
[1717339778606,0.228705,68164.0,68163.0,0.01144351]
[1717339779654,0.218705,68164.0,68163.0,0.01144351]
[1717339780249,0.228705,68164.0,68163.0,0.01144351]
[1717339781099,0.228705,68164.0,68163.0,0.009438]
[1717339783260,0.767105,68164.0,68163.0,0.009438]
[1717339785428,0.91288291,68164.0,68163.0,0.009438]
[1717339785650,1.20629291,68164.0,68163.0,0.009438]
[1717339785851,1.30629291,68164.0,68163.0,0.009438]
[1717339793489,1.59970291,68164.0,68163.0,0.009438]
[1717339794125,1.30629291,68164.0,68163.0,0.009438]
[1717339795682,1.80154772,68164.0,68163.0,0.009438]
[1717339797520,1.81098572,68164.0,68163.0,0.009438]
[1717339797720,2.0355031,68164.0,68163.0,0.009438]
[1717339798329,1.81098572,68164.0,68163.0,0.009438]
[1717339799195,2.03645194,68164.0,68163.0,0.009438]
[1717339799484,1.81098572,68164.0,68163.0,0.009438]
[1717339799883,2.05859174,68164.0,68163.0,0.009438]
[1717339800629,1.83504572,68164.0,68163.0,0.009438]
[1717339800910,2.05973788,68164.0,68163.0,0.009438]
[1717339801052,2.35314788,68164.0,68163.0,0.009438]
[1717339801941,2.05973788,68164.0,68163.0,0.009438]
[1717339803319,2.35314788,68164.0,68163.0,0.009438]
[1717339803481,2.37614788,68164.0,68163.0,0.009438]
[1717339804012,2.47614788,68164.0,68163.0,0.009438]
[1717339804215,2.44014788,68164.0,68163.0,0.009438]
[1717339804570,2.47614788,68164.0,68163.0,0.009438]
[1717339804768,2.37614788,68164.0,68163.0,0.009438]
[1717339804977,2.44014788,68164.0,68163.0,0.009438]
[1717339805420,2.47614788,68164.0,68163.0,0.009438]
[1717339805997,2.42694788,68164.0,68163.0,0.009438]
[1717339806202,2.37614788,68164.0,68163.0,0.009438]
[1717339807155,2.34014788,68164.0,68163.0,0.009438]
[1717339807356,2.30414788,68164.0,68163.0,0.009438]
[1717339807772,2.34114788,68164.0,68163.0,0.009438]
[1717339808182,2.44114788,68164.0,68163.0,0.009438]
[1717339808343,2.47814788,68164.0,68163.0,0.009438]
[1717339808561,2.51414788,68164.0,68163.0,0.009438]
[1717339809036,2.47814788,68164.0,68163.0,0.009438]
[1717339809264,2.51414788,68164.0,68163.0,0.009438]
[1717339809879,2.41414788,68164.0,68163.0,0.009438]
[1717339810537,2.12073788,68164.0,68163.0,0.009438]
[1717339811557,2.41414788,68164.0,68163.0,0.009438]
[1717339812128,2.12073788,68164.0,68163.0,0.009438]
[1717339812539,2.41414788,68164.0,68163.0,0.009438]
[1717339812932,2.36494788,68164.0,68163.0,0.009438]
[1717339813169,2.41414788,68164.0,68163.0,0.009438]
[1717339813830,2.18945572,68164.0,68163.0,0.009438]
[1717339814033,2.48733648,68164.0,68163.0,0.009438]
[1717339814190,2.38733648,68164.0,68163.0,0.009438]
[1717339815007,2.04472648,68164.0,68163.0,0.009438]
[1717339815237,1.38332648,68164.0,68163.0,0.009438]
[1717339815438,1.20114772,68164.0,68163.0,0.176938]
[1717339815639,1.15194772,68164.0,68163.0,0.17897642]
[1717339815903,1.20114772,68164.0,68163.0,0.17897642]
[1717339816052,1.14850291,68164.0,68163.0,0.01147642]
[1717339816257,1.11250291,68164.0,68163.0,0.01147642]
[1717339816458,1.15770258,68164.0,68163.0,0.01147642]
[1717339817140,1.14450258,68164.0,68163.0,0.01147642]
[1717339817322,1.02530291,68164.0,68163.0,0.01147642]
[1717339817560,1.11050291,68164.0,68163.0,0.01147642]
[1717339817848,1.07450291,68164.0,68163.0,0.01147642]
[1717339818073,1.02530291,68164.0,68163.0,0.01147642]
[1717339818262,1.11050291,68164.0,68163.0,0.01147642]
[1717339818503,1.07450291,68164.0,68163.0,0.01147642]
[1717339818730,1.11050291,68164.0,68163.0,0.01147642]
[1717339821137,1.15703195,68164.0,68163.0,0.01147642]
[1717339821342,1.15703195,68164.0,68163.0,0.009438]
[1717339821517,1.15703195,68164.0,68163.0,0.01146303]
[1717339822395,1.15703195,68164.0,68163.0,0.51816303]
[1717339822396,1.10783195,68164.0,68163.0,0.51816303]
[1717339822543,1.06130291,68164.0,68163.0,0.51816303]
[1717339823147,0.76789291,68164.0,68163.0,0.51816303]
[1717339823352,0.81709291,68164.0,68163.0,0.51816303]
[1717339824546,0.76789291,68164.0,68163.0,0.51816303]
[1717339824827,0.81709291,68164.0,68163.0,0.51816303]
[1717339824959,0.76789291,68164.0,68163.0,0.51816303]
[1717339825749,0.72189291,68164.0,68163.0,0.51816303]
[1717339826002,0.75789291,68164.0,68163.0,0.51816303]
[1717339826587,0.72189291,68164.0,68163.0,0.51816303]
[1717339826762,0.75789291,68164.0,68163.0,0.51816303]
[1717339827417,0.42848291,68164.0,68163.0,0.51816303]
[1717339827772,0.42848291,68164.0,68163.0,0.51916303]
[1717339827773,0.46448291,68164.0,68163.0,0.51916303]
[1717339829005,0.47448291,68164.0,68163.0,0.51916303]
[1717339829228,0.46448291,68164.0,68163.0,0.51916303]
[1717339831238,0.47448291,68164.0,68163.0,0.51916303]
[1717339831447,0.46448291,68164.0,68163.0,0.51916303]
[1717339831607,0.318705,68164.0,68163.0,0.51916303]
[1717339832774,0.218705,68164.0,68163.0,0.51916303]
[1717339833561,0.182705,68164.0,68163.0,0.51916303]
[1717339833987,0.213705,68164.0,68163.0,0.51916303]
[1717339834161,0.177705,68164.0,68163.0,0.51816303]
[1717339834363,0.211705,68164.0,68163.0,0.51916303]
[1717339834769,0.177705,68164.0,68163.0,0.51816303]
[1717339835178,0.180705,68164.0,68163.0,0.51916303]
[1717339835718,0.252705,68164.0,68163.0,0.52016303]
[1717339836657,0.216705,68164.0,68163.0,0.52016303]
[1717339836861,0.252705,68164.0,68163.0,0.52116303]
[1717339838192,0.106,68164.0,68163.0,0.52116303]
[1717339838396,0.106,68164.0,68163.0,0.57036303]
[1717339838630,0.106,68164.0,68163.0,0.72262559]
[1717339843230,0.106,68164.0,68163.0,0.72261495]
[1717339844452,0.146692,68170.0,68163.0,0.21291495]
[1717339844648,0.146692,68170.0,68166.0,0.2209]
[1717339844816,0.146692,68170.0,68167.0,0.15425219]
[1717339845018,0.146692,68170.0,68168.0,0.15225192]
[1717339845235,0.146692,68170.0,68169.0,0.15425127]
[1717339846055,0.146684,68174.0,68169.0,0.15425127]
[1717339846265,0.049,68170.0,68169.0,0.00199935]
[1717339846481,0.049,68170.0,68169.0,0.15424893]
[1717339847608,0.034,68170.0,68169.0,0.15424893]
[1717339847840,0.07,68170.0,68169.0,0.15524893]
[1717339848006,0.036,68170.0,68169.0,0.15524893]
[1717339848400,0.072,68170.0,68169.0,0.15624893]
[1717339848670,0.072,68170.0,68169.0,0.66364893]
[1717339849072,0.07166711,68170.0,68169.0,0.51139935]
[1717339849308,0.07166711,68170.0,68169.0,0.15624893]
[1717339849516,0.07166711,68170.0,68169.0,0.00399935]
[1717339849720,0.21835911,68170.0,68169.0,0.00399935]
[1717339851780,0.21835911,68170.0,68169.0,0.15625071]
[1717339857046,0.87223702,68170.0,68169.0,0.15625071]
[1717339857240,1.03143702,68170.0,68169.0,0.15625071]
[1717339857451,1.03143702,68170.0,68169.0,0.002]
[1717339858281,1.32482102,68170.0,68169.0,0.002]
[1717339859282,1.32482102,68170.0,68169.0,0.001]
[1717339859283,1.28882102,68170.0,68169.0,0.001]
[1717339859492,1.32482102,68170.0,68169.0,0.002]
[1717339859703,1.32482102,68170.0,68169.0,0.001]
[1717339859915,1.28915391,68170.0,68169.0,0.001]
[1717339860128,1.32215391,68170.0,68169.0,0.001]
[1717339860576,1.28915391,68170.0,68169.0,0.001]
[1717339861429,1.32515391,68170.0,68169.0,0.001]
[1717339862072,1.27595391,68170.0,68169.0,0.001]
[1717339867220,1.26595391,68170.0,68169.0,0.001]
[1717339867426,0.75785391,68170.0,68169.0,0.001]
[1717339867702,0.76785391,68170.0,68169.0,0.001]
[1717339868295,0.75785391,68170.0,68169.0,0.001]
[1717339868533,0.76785391,68170.0,68169.0,0.001]
[1717339868720,0.75785391,68170.0,68169.0,0.001]
[1717339869082,0.46446991,68170.0,68169.0,0.001]
[1717339869460,0.318692,68170.0,68169.0,0.001]
[1717339869676,0.318692,68170.0,68169.0,0.4968]
[1717339870088,0.318692,68170.0,68169.0,0.49856442]
[1717339872355,0.318692,68170.0,68169.0,0.49756442]
[1717339872356,0.282692,68170.0,68169.0,0.49756442]
[1717339872757,0.314692,68170.0,68169.0,0.49756442]
[1717339873102,0.278692,68170.0,68169.0,0.49756442]
[1717339873302,0.308692,68170.0,68169.0,0.49756442]
[1717339873924,0.314692,68170.0,68169.0,0.64981546]
[1717339874244,0.350692,68170.0,68169.0,0.64981546]
[1717339874596,0.104,68170.0,68169.0,0.69901546]
[1717339875130,0.104,68170.0,68169.0,0.64981546]
[1717339875565,0.104,68170.0,68169.0,0.64981054]
[1717339878632,0.104,68170.0,68169.0,0.69901054]
[1717339878820,0.104,68170.0,68169.0,0.69900906]
[1717339880184,0.104,68170.0,68169.0,0.79900906]
[1717339880381,0.104,68170.0,68169.0,0.76476343]
[1717339880583,0.104,68170.0,68169.0,1.15579116]
[1717339880879,0.068,68170.0,68169.0,1.02421839]
[1717339881201,0.069,68170.0,68169.0,1.13485009]
[1717339881408,0.069,68170.0,68169.0,1.527322]
[1717339881634,0.001,68170.0,68169.0,1.4176903]
[1717339882036,0.002,68170.0,68169.0,1.44566221]
[1717339882234,0.002,68170.0,68169.0,1.43966221]
[1717339882458,0.002,68170.0,68169.0,1.4176903]
[1717339882644,0.003,68170.0,68169.0,1.4236903]
[1717339882880,0.003,68170.0,68169.0,1.4226903]
[1717339882881,0.002,68170.0,68169.0,1.4226903]
[1717339883268,0.002,68170.0,68169.0,1.53225773]
[1717339883428,0.002,68170.0,68169.0,1.4226903]
[1717339883640,0.003,68170.0,68169.0,1.43065188]
[1717339884066,0.003,68170.0,68169.0,1.54022287]
[1717339884274,0.002,68170.0,68169.0,1.53222287]
[1717339884484,0.003,68170.0,68169.0,1.42865188]
[1717339884687,0.003,68170.0,68169.0,1.53822287]
[1717339885312,0.003,68170.0,68169.0,1.42865188]
[1717339885542,0.003,68170.0,68169.0,1.53822287]
[1717339886199,0.003,68170.0,68169.0,1.42865188]
[1717339886418,0.003,68170.0,68169.0,1.53822287]
[1717339886770,0.003,68170.0,68169.0,1.43822287]
[1717339887151,0.003,68170.0,68169.0,1.32865188]
[1717339888431,0.003,68170.0,68169.0,1.51623594]
[1717339888567,0.003,68170.0,68169.0,1.42862337]
[1717339890059,0.003,68170.0,68169.0,1.45798337]
[1717339890261,0.003,68170.0,68169.0,1.5893897]
[1717339890466,0.003,68170.0,68169.0,1.47995119]
[1717339890848,0.002,68170.0,68169.0,1.47395119]
[1717339891049,0.002,68170.0,68169.0,1.45198337]
[1717339891256,0.3575,68191.0,68176.0,0.5034]
[1717339891257,0.146653,68188.0,68176.0,0.5034]
[1717339891466,0.146653,68188.0,68184.0,0.0492]
[1717339891800,0.146653,68188.0,68185.0,0.0017017]
[1717339892179,0.146653,68188.0,68184.0,0.2222]
[1717339892367,0.146653,68188.0,68186.0,0.00170124]
[1717339892563,0.146653,68188.0,68185.0,0.0017017]
[1717339892773,0.146653,68188.0,68187.0,0.00170078]
[1717339892998,0.146653,68188.0,68186.0,0.00170124]
[1717339892999,0.169653,68188.0,68186.0,0.00170124]
[1717339893207,0.169653,68188.0,68187.0,0.00170078]
[1717339893408,0.191653,68188.0,68187.0,0.00170078]
[1717339893608,0.191653,68188.0,68185.0,0.001]
[1717339893891,0.191653,68188.0,68187.0,0.00170078]
[1717339894004,0.223653,68188.0,68187.0,0.002]
[1717339894254,0.200653,68188.0,68187.0,0.00370078]
[1717339895747,0.229653,68188.0,68187.0,0.00470078]
[1717339900327,0.229653,68188.0,68187.0,0.15520239]
[1717339900483,0.229653,68188.0,68187.0,0.00469606]
[1717339902421,0.229653,68188.0,68187.0,0.15690028]
[1717339903069,0.083,68188.0,68187.0,0.15690028]
[1717339905425,0.093,68188.0,68187.0,0.15690028]
[1717339905823,0.093,68188.0,68187.0,0.15520422]
[1717339906035,0.083,68188.0,68187.0,0.15520422]
[1717339906266,0.093,68188.0,68187.0,0.15690028]
[1717339906621,0.6157,68188.0,68187.0,0.15690028]
[1717339906841,0.6257,68188.0,68187.0,0.15690028]
[1717339907025,0.6257,68188.0,68187.0,0.00469606]
[1717339907229,0.083,68188.0,68187.0,0.15690132]
[1717339907424,0.083,68188.0,68187.0,0.15520526]
[1717339908244,0.083,68188.0,68187.0,0.15520347]
[1717339910693,0.083,68188.0,68187.0,0.15689953]
[1717339910836,0.083,68188.0,68187.0,0.15520347]
[1717339911039,0.083,68188.0,68187.0,0.20609953]
[1717339911667,0.083,68188.0,68187.0,0.15689953]
[1717339911867,0.083,68188.0,68187.0,0.15520347]
[1717339912070,0.083,68188.0,68187.0,0.15690076]
[1717339922463,0.083,68188.0,68187.0,0.20610076]
[1717339923827,0.083,68188.0,68187.0,0.05389729]
[1717339924043,0.083,68188.0,68187.0,0.76509902]
[1717339924210,0.083,68188.0,68187.0,0.72139159]
[1717339924639,0.054,68188.0,68187.0,0.72039159]
[1717339924847,0.146637,68196.0,68187.0,0.71939159]
[1717339924994,0.005,68188.0,68187.0,0.51799729]
[1717339925198,0.014,68188.0,68187.0,0.72039075]
[1717339925425,0.009,68188.0,68187.0,0.71839075]
[1717339925829,0.034,68188.0,68187.0,0.72139075]
[1717339926183,0.034,68188.0,68187.0,0.78695189]
[1717339926390,0.034,68188.0,68187.0,1.19316598]
[1717339926817,0.034,68188.0,68187.0,1.28058084]
[1717339927022,0.034,68188.0,68187.0,1.44340222]
[1717339927454,0.034,68188.0,68187.0,1.53071552]
[1717339927861,0.034,68188.0,68187.0,1.48151552]
[1717339928132,0.034,68188.0,68187.0,1.53071552]
[1717339928336,0.034,68188.0,68187.0,1.44339845]
[1717339930508,0.034,68188.0,68187.0,1.55266702]
[1717339930954,0.034,68188.0,68187.0,1.32438605]
[1717339931095,0.034,68188.0,68187.0,1.55266702]
[1717339931305,0.034,68188.0,68187.0,0.61323105]
[1717339931511,0.034,68188.0,68187.0,0.53121098]
[1717339931716,0.034,68188.0,68187.0,1.04651098]
[1717339931925,0.034,68188.0,68187.0,1.40601202]
[1717339932163,0.034,68188.0,68187.0,1.17773105]
[1717339932374,0.034,68188.0,68187.0,1.35681202]
[1717339932584,0.034,68188.0,68187.0,1.04651098]
[1717339932990,0.034,68188.0,68187.0,1.1341918]
[1717339933195,0.034,68188.0,68187.0,1.04651098]
[1717339934225,0.034,68188.0,68187.0,1.15577955]
[1717339935057,0.034,68188.0,68187.0,1.17773105]
[1717339935306,0.034,68188.0,68187.0,1.12886697]
[1717339935528,0.034,68188.0,68187.0,1.15611547]
[1717339936507,0.034,68188.0,68187.0,1.17806697]
[1717339937299,0.034,68188.0,68187.0,1.12886697]
[1717339937480,0.034,68188.0,68187.0,1.17806697]
[1717339938733,0.034,68188.0,68187.0,1.15611547]
[1717339938936,0.034,68188.0,68187.0,1.04651098]
[1717339939618,0.034,68188.0,68187.0,1.15611547]
[1717339940643,0.034,68188.0,68187.0,0.76820522]
[1717339941436,0.034,68188.0,68187.0,0.60730522]
[1717339942016,0.034,68188.0,68187.0,0.64578877]
[1717339942224,0.5519,68188.0,68187.0,0.64578877]
[1717339948079,0.034,68188.0,68187.0,0.64578877]
[1717339949090,0.034,68188.0,68187.0,0.55810522]
[1717339950495,0.034,68188.0,68187.0,0.66770971]
[1717339954130,0.034,68188.0,68187.0,1.31386471]
[1717339954327,0.034,68188.0,68187.0,1.43254084]
[1717339958072,0.034,68188.0,68187.0,1.43252926]
[1717339959243,0.034,68188.0,68187.0,1.43251979]
[1717339959575,0.034,68188.0,68187.0,1.20424615]
[1717339960333,0.034,68188.0,68187.0,1.22619615]
[1717339962429,0.034,68188.0,68187.0,0.88829615]
[1717339964948,0.034,68188.0,68187.0,0.31295229]
[1717339965102,0.034,68188.0,68187.0,0.88827238]
[1717339965880,0.034,68188.0,68187.0,0.98827238]
[1717339966067,0.034,68188.0,68187.0,0.73804866]
[1717339966262,0.034,68188.0,68187.0,0.98827123]
[1717339966486,0.034,68188.0,68187.0,1.49611756]
[1717339966982,0.034,68188.0,68187.0,0.86632097]
[1717339967167,0.034,68188.0,68187.0,0.96632097]
[1717339967568,0.034,68188.0,68187.0,1.1917595]
[1717339968002,0.034,68188.0,68187.0,1.0917595]
[1717339968573,0.034,68188.0,68187.0,1.57543741]
[1717339968786,0.034,68188.0,68187.0,1.67543741]
[1717339968993,0.034,68188.0,68187.0,1.80701765]
[1717339973586,0.5118,68197.0,68187.0,1.80401765]
[1717339973794,0.5118,68197.0,68196.0,0.0492]
[1717339973999,0.5118,68197.0,68196.0,0.60256868]
[1717339974407,0.5118,68197.0,68196.0,0.60419784]
[1717339975898,0.5318,68197.0,68196.0,0.60619784]
[1717339976383,0.5528,68197.0,68196.0,0.60819784]
[1717339977027,0.041,68197.0,68196.0,0.60819784]
[1717339977473,0.041,68197.0,68196.0,0.69590409]
[1717339977875,0.041,68197.0,68196.0,0.60819784]
[1717339978491,0.041,68197.0,68196.0,0.75483384]
[1717339978660,0.041,68197.0,68196.0,0.86446666]
[1717339979000,0.041,68197.0,68196.0,0.75483384]
[1717339979203,0.041,68197.0,68196.0,0.86441257]
[1717339980042,0.041,68197.0,68196.0,0.75483384]
[1717339980784,0.041,68197.0,68196.0,0.86439817]
[1717339980985,0.041,68197.0,68196.0,0.75483384]
[1717339981197,0.041,68197.0,68196.0,0.86439798]
[1717339982012,0.041,68197.0,68196.0,0.81519798]
[1717339982217,0.041,68197.0,68196.0,0.86439798]
[1717339983704,0.041,68197.0,68196.0,1.43207589]
[1717339983915,0.041,68197.0,68196.0,1.71395028]
[1717339984289,0.041,68197.0,68196.0,1.84553052]
[1717339984543,0.3246,68212.0,68200.0,0.1]
[1717339984747,0.3246,68212.0,68210.0,0.0492]
[1717339984950,0.3246,68212.0,68211.0,0.15218154]
[1717339985170,0.3246,68212.0,68211.0,0.15378713]
[1717339985859,0.3256,68212.0,68211.0,0.15378713]
[1717339986481,0.3246,68212.0,68211.0,0.15378713]
[1717339986716,0.3606,68212.0,68211.0,0.15578713]
[1717339987740,0.3966,68212.0,68211.0,0.15778713]
[1717339988361,0.072,68212.0,68211.0,0.15778713]
[1717339988917,0.072,68212.0,68211.0,0.23385477]
[1717339989127,0.072,68212.0,68211.0,0.27764397]
[1717339989277,0.072,68212.0,68211.0,0.23385477]
[1717339989698,0.072,68212.0,68211.0,0.38045777]
[1717339990508,0.072,68212.0,68211.0,1.14822488]
[1717339990786,0.072,68212.0,68211.0,1.04822488]
[1717339990987,0.036,68212.0,68211.0,1.39309725]
[1717339991139,0.4835,68220.0,68214.0,0.146597]
[1717339991347,0.4835,68220.0,68219.0,0.0492]
[1717339991551,0.4835,68220.0,68219.0,0.20138154]
[1717339991754,0.4835,68220.0,68219.0,0.20297545]
[1717339992171,0.4835,68220.0,68219.0,0.15377545]
[1717339993004,0.5015,68220.0,68219.0,0.15577545]
[1717339993838,0.5205,68220.0,68219.0,0.15777545]
[1717339994197,0.037,68220.0,68219.0,0.15777545]
[1717339994396,0.5205,68220.0,68219.0,0.15777545]
[1717339998447,0.5205,68220.0,68219.0,0.15771825]
[1717339999654,0.5205,68220.0,68219.0,0.15771955]
[1717340000039,0.5205,68220.0,68219.0,0.15771946]
[1717340000896,0.5205,68220.0,68219.0,0.00559391]
[1717340001065,0.5205,68220.0,68219.0,0.15771997]
[1717340010079,0.5155,68220.0,68219.0,0.15771997]
[1717340010287,0.5155,68220.0,68219.0,0.15612606]
[1717340010666,0.5155,68220.0,68219.0,0.15768677]
[1717340011682,0.5155,68220.0,68219.0,0.00556071]
[1717340012012,0.5155,68220.0,68219.0,0.15612721]
[1717340012423,0.5155,68220.0,68219.0,0.15768792]
[1717340015315,0.5255,68220.0,68219.0,0.15768792]
[1717340015524,0.5155,68220.0,68219.0,0.15612721]
[1717340015954,0.5155,68220.0,68219.0,0.15768792]
[1717340016388,0.5155,68220.0,68219.0,0.23375127]
[1717340018529,0.032,68220.0,68219.0,0.23375127]
[1717340019824,0.042,68220.0,68219.0,0.23375127]
[1717340020024,0.630884,68220.0,68219.0,0.23375127]
[1717340020228,0.630884,68220.0,68219.0,0.23375294]
[1717340020431,0.630884,68220.0,68219.0,0.15612721]
[1717340020556,0.630884,68220.0,68219.0,0.15767638]
[1717340021163,0.82586191,68220.0,68219.0,0.15767638]
[1717340021541,0.82586191,68220.0,68219.0,0.004]
[1717340023730,1.21903091,68220.0,68219.0,0.004]
[1717340033127,1.21884402,68220.0,68219.0,0.004]
[1717340035115,1.51201302,68220.0,68219.0,0.004]
[1717340035324,1.61201302,68220.0,68219.0,0.004]
[1717340035754,1.65418118,68220.0,68219.0,0.004]
[1717340036593,1.65418118,68220.0,68219.0,0.002]
[1717340036594,1.63518118,68220.0,68219.0,0.002]
[1717340036747,1.63518118,68220.0,68193.0,0.4691]
[1717340036748,0.01,68198.0,68193.0,0.4691]
[1717340036964,0.01,68198.0,68194.0,0.15218246]
[1717340037138,0.01,68198.0,68194.0,0.00151594]
[1717340037523,0.01,68198.0,68191.0,0.2862]
[1717340037738,0.01,68198.0,68192.0,0.15369954]
[1717340037957,0.01,68197.0,68193.0,0.16718268]
[1717340038159,0.01,68197.0,68193.0,0.015]
[1717340038356,0.01,68197.0,68194.0,0.00151594]
[1717340038558,0.156637,68196.0,68194.0,0.00851594]
[1717340039851,0.156637,68196.0,68194.0,0.00151594]
[1717340040044,0.156637,68196.0,68191.0,0.007]
[1717340040270,0.156637,68196.0,68193.0,0.006]
[1717340040471,0.156637,68196.0,68194.0,0.00151594]
[1717340040672,0.156637,68196.0,68194.0,0.001]
[1717340040673,0.172637,68196.0,68194.0,0.001]
[1717340040874,0.190637,68196.0,68195.0,0.00151548]
[1717340041193,0.164637,68196.0,68195.0,0.00151548]
[1717340041594,0.191637,68196.0,68195.0,0.00151548]
[1717340041796,0.173637,68196.0,68195.0,0.00151548]
[1717340042553,0.173637,68196.0,68193.0,0.001]
[1717340042839,0.027,68196.0,68195.0,0.00151548]
[1717340043052,0.015,68196.0,68195.0,0.1438]
[1717340043256,0.015,68196.0,68195.0,0.48658086]
[1717340043465,0.034,68196.0,68195.0,0.63389777]
[1717340043815,0.056,68196.0,68195.0,0.63489777]
[1717340044079,0.037,68196.0,68195.0,0.63389777]
[1717340044557,0.038,68196.0,68195.0,0.64089777]
[1717340044783,0.001,68196.0,68195.0,0.63989777]
[1717340045004,0.146614,68207.0,68197.0,0.4559]
[1717340045239,0.146614,68207.0,68195.0,0.35267568]
[1717340045240,0.146614,68207.0,68202.0,0.0492]
[1717340045689,0.146614,68207.0,68206.0,0.1524]
[1717340045890,0.146614,68207.0,68206.0,0.4559]
[1717340046094,0.146614,68207.0,68206.0,0.45765506]
[1717340047335,0.147614,68207.0,68206.0,0.45765506]
[1717340047790,0.147614,68207.0,68206.0,0.45965506]
[1717340047791,0.204614,68207.0,68206.0,0.45965506]
[1717340048007,0.058,68207.0,68206.0,0.61181058]
[1717340048233,0.027,68207.0,68206.0,0.77126868]
[1717340048451,0.027,68207.0,68206.0,0.80062868]
[1717340048670,0.027,68207.0,68206.0,0.84436598]
[1717340048876,0.027,68207.0,68206.0,0.80062868]
[1717340049090,0.156579,68223.0,68210.0,0.48526]
[1717340049294,0.01,68220.0,68213.0,0.0492]
[1717340049516,0.01,68220.0,68214.0,0.15215552]
[1717340049517,0.3208,68220.0,68214.0,0.15215552]
[1717340049718,0.467379,68223.0,68215.0,0.15215552]
[1717340050056,0.467379,68223.0,68216.0,0.15215552]
[1717340050252,0.467379,68223.0,68217.0,0.15215552]
[1717340050454,0.460379,68223.0,68218.0,0.15215552]
[1717340050655,0.470379,68223.0,68214.0,0.0492]
[1717340050876,0.467379,68223.0,68215.0,0.15213199]
[1717340051078,0.467379,68223.0,68216.0,0.15213199]
[1717340051079,0.01,68222.0,68216.0,0.15213199]
[1717340051279,0.01,68222.0,68217.0,0.15213199]
[1717340051524,0.01,68222.0,68216.0,0.001]
[1717340051725,0.495379,68223.0,68218.0,0.002]
[1717340051926,0.490379,68223.0,68218.0,0.002]
[1717340052362,0.01,68222.0,68218.0,0.002]
[1717340052531,0.490379,68223.0,68218.0,0.002]
[1717340052734,0.169579,68223.0,68218.0,0.002]
[1717340053002,0.169579,68223.0,68219.0,0.4559]
[1717340053132,0.162579,68223.0,68219.0,0.4559]
[1717340053539,0.165579,68223.0,68219.0,0.4559]
[1717340053738,0.149579,68223.0,68219.0,0.4559]
[1717340054077,0.146579,68223.0,68219.0,0.4559]
[1717340054405,0.163579,68223.0,68219.0,0.4569]
[1717340054608,0.163579,68223.0,68219.0,0.001]
[1717340054609,0.01,68222.0,68219.0,0.001]
[1717340054812,0.1555,68220.0,68219.0,0.001]
[1717340055015,0.01,68219.0,68218.0,0.001]
[1717340055163,0.01,68219.0,68212.0,0.4559]
[1717340055389,0.01,68219.0,68213.0,0.15213098]
[1717340055574,0.01,68219.0,68214.0,0.15213098]
[1717340055753,0.01,68219.0,68215.0,0.15213098]
[1717340055954,0.1555,68220.0,68216.0,0.15213098]
[1717340056182,0.1555,68220.0,68212.0,0.4559]
[1717340056183,0.1455,68220.0,68212.0,0.4559]
[1717340056380,0.14658,68222.0,68219.0,0.001]
[1717340056745,0.14658,68222.0,68214.0,0.0492]
[1717340056981,0.14658,68222.0,68215.0,0.15213098]
[1717340057230,0.007,68220.0,68216.0,0.15313098]
[1717340057401,0.007,68220.0,68219.0,0.001]
[1717340057601,0.16558,68222.0,68219.0,0.001]
[1717340057821,0.14658,68222.0,68214.0,0.0492]
[1717340057978,0.14658,68222.0,68217.0,0.0492]
[1717340058368,0.14858,68222.0,68218.0,0.4559]
[1717340058543,0.14758,68222.0,68220.0,0.0492]
[1717340058922,0.16658,68222.0,68220.0,0.0492]
[1717340059143,0.16640358,68222.0,68220.0,0.0492]
[1717340059447,0.17840358,68222.0,68220.0,0.0492]
[1717340059706,0.17840358,68222.0,68218.0,0.4559]
[1717340059849,0.17740358,68222.0,68218.0,0.5051]
[1717340060268,0.18740358,68222.0,68218.0,0.5051]
[1717340060645,0.14640358,68222.0,68218.0,0.5051]
[1717340060879,0.14640358,68222.0,68218.0,0.5061]
[1717340061031,0.15940358,68222.0,68218.0,0.5061]
[1717340061675,0.18240358,68222.0,68220.0,0.001]
[1717340062229,0.19840358,68222.0,68220.0,0.001]
[1717340063053,0.19840358,68222.0,68221.0,0.0492]
[1717340063457,0.18540358,68222.0,68221.0,0.0492]
[1717340063858,0.16640358,68222.0,68221.0,0.0492]
[1717340064256,0.14640358,68222.0,68221.0,0.0492]
[1717340064689,0.16940358,68222.0,68221.0,0.0502]
[1717340065571,0.17240358,68222.0,68221.0,0.0502]
[1717340066819,0.19240358,68222.0,68221.0,0.0512]
[1717340067265,0.17240358,68222.0,68221.0,0.001]
[1717340067672,0.19540358,68222.0,68221.0,0.002]
[1717340069743,0.20540358,68222.0,68221.0,0.002]
[1717340069963,0.48930358,68222.0,68221.0,0.002]
[1717340070177,0.47930358,68222.0,68221.0,0.002]
[1717340074247,0.47930358,68222.0,68221.0,0.15412688]
[1717340074817,0.48930358,68222.0,68221.0,0.15412688]